bitfinex/quotes_BTCUSD_20250208
["timestamp","ask_amount","ask_price","bid_price","bid_amount"]
[1738974348466,1.96711382,96775.0,96774.0,0.87859348]
[1738974348674,1.96104427,96775.0,96774.0,0.87859348]
[1738974348904,1.95075426,96775.0,96774.0,0.89936208]
[1738974349120,1.93110113,96775.0,96774.0,0.89936208]
[1738974349322,1.88110113,96775.0,96774.0,0.94526208]
[1738974349809,1.88110113,96775.0,96774.0,0.91337225]
[1738974350011,1.88110113,96775.0,96774.0,1.07237225]
[1738974350139,1.72542282,96775.0,96774.0,1.03277225]
[1738974350350,1.64392058,96775.0,96774.0,1.01747225]
[1738974350761,1.64392058,96775.0,96774.0,1.04925606]
[1738974350971,1.64392058,96775.0,96774.0,1.02647225]
[1738974351176,1.64392058,96775.0,96774.0,1.03547225]
[1738974351744,1.64392058,96775.0,96774.0,1.01470365]
[1738974352714,1.64392058,96775.0,96774.0,1.00970365]
[1738974354159,1.58122058,96775.0,96774.0,1.00970365]
[1738974354464,1.58122058,96775.0,96774.0,1.33660365]
[1738974355436,1.58122058,96775.0,96774.0,1.34160365]
[1738974355900,1.58122058,96775.0,96774.0,1.35960365]
[1738974356283,1.58122058,96775.0,96774.0,1.35060365]
[1738974357066,1.58122058,96775.0,96774.0,1.35960365]
[1738974358723,1.58122058,96775.0,96774.0,0.78120365]
[1738974359345,1.58122058,96775.0,96774.0,0.93120365]
[1738974359547,1.58122058,96775.0,96774.0,0.77220365]
[1738974360146,1.58122058,96775.0,96774.0,0.93120365]
[1738974360353,1.58122058,96775.0,96774.0,0.92220365]
[1738974360571,1.58122058,96775.0,96774.0,0.91320365]
[1738974360703,1.58122058,96775.0,96774.0,0.92220365]
[1738974362273,1.58122058,96775.0,96774.0,0.93120365]
[1738974362448,1.58122058,96775.0,96774.0,0.92220365]
[1738974362864,1.58122058,96775.0,96774.0,0.93120365]
[1738974363166,1.58122058,96775.0,96774.0,0.91320365]
[1738974363549,1.58122058,96775.0,96774.0,0.93120365]
[1738974363766,1.58122058,96775.0,96774.0,1.24910365]
[1738974364920,1.58122058,96775.0,96774.0,1.24010365]
[1738974365126,1.58122058,96775.0,96774.0,1.24910365]
[1738974366607,1.58122058,96775.0,96774.0,1.24010365]
[1738974366840,1.58122058,96775.0,96774.0,1.25810365]
[1738974367898,1.58122058,96775.0,96774.0,1.24910365]
[1738974368453,1.58122058,96775.0,96774.0,1.25810365]
[1738974370250,1.58122058,96775.0,96774.0,1.25832793]
[1738974371005,1.58122058,96775.0,96774.0,1.24932793]
[1738974371634,1.63112058,96775.0,96774.0,1.25832793]
[1738974371840,1.63112058,96775.0,96774.0,1.24932793]
[1738974372038,1.58122058,96775.0,96774.0,1.25832793]
[1738974372580,1.58122058,96775.0,96774.0,1.24932793]
[1738974373243,1.58122058,96775.0,96774.0,1.25832793]
[1738974374273,1.58122058,96775.0,96774.0,1.24932793]
[1738974374433,1.58122058,96775.0,96774.0,1.24032793]
[1738974374772,1.58122058,96775.0,96774.0,1.25832793]
[1738974374973,1.58122058,96775.0,96774.0,1.24032793]
[1738974375381,1.58122058,96775.0,96774.0,1.25832793]
[1738974376602,1.65722058,96775.0,96774.0,1.25832793]
[1738974376757,1.66722058,96775.0,96774.0,0.27072793]
[1738974376953,1.81962423,96775.0,96774.0,0.12072793]
[1738974377161,1.71712058,96775.0,96774.0,0.12072793]
[1738974377393,1.72712058,96775.0,96774.0,0.12072793]
[1738974377809,1.72712058,96775.0,96774.0,0.00922428]
[1738974378456,1.72712058,96775.0,96774.0,0.01822428]
[1738974378457,1.73358222,96775.0,96774.0,0.01822428]
[1738974378631,1.73358222,96775.0,96774.0,0.00922428]
[1738974378831,1.73358222,96775.0,96774.0,0.00022428]
[1738974379007,1.73358222,96775.0,96774.0,0.00922428]
[1738974379413,1.73358222,96775.0,96774.0,0.01722428]
[1738974380383,1.73358222,96775.0,96774.0,0.00822428]
[1738974380809,1.73358222,96775.0,96774.0,0.01722428]
[1738974381656,1.72358222,96775.0,96774.0,0.01722428]
[1738974381925,1.63758222,96775.0,96774.0,0.26972793]
[1738974382051,1.58768222,96775.0,96774.0,0.26972793]
[1738974382252,1.58768222,96775.0,96774.0,0.28023197]
[1738974382659,1.58768222,96775.0,96774.0,0.31212245]
[1738974384099,1.58122058,96775.0,96774.0,0.31212245]
[1738974387197,1.58122058,96775.0,96774.0,1.14972245]
[1738974387396,1.58122058,96775.0,96774.0,1.17272245]
[1738974388017,1.58122058,96775.0,96774.0,1.16372245]
[1738974388255,1.58122058,96775.0,96774.0,1.15572245]
[1738974388446,1.58122058,96775.0,96774.0,1.16472245]
[1738974388645,1.58122058,96775.0,96774.0,1.17372245]
[1738974388826,1.58122058,96775.0,96774.0,1.16472245]
[1738974389226,1.58122058,96775.0,96774.0,1.14172245]
[1738974390350,1.58122058,96775.0,96774.0,1.15072245]
[1738974397980,1.58122058,96775.0,96774.0,1.30572245]
[1738974403591,1.54902062,96775.0,96774.0,1.30572245]
[1738974407808,1.62642062,96775.0,96774.0,1.27383197]
[1738974408005,1.63642062,96775.0,96774.0,1.27383197]
[1738974408903,1.63642062,96775.0,96774.0,0.43623197]
[1738974409084,1.63642062,96775.0,96774.0,0.42723197]
[1738974409968,1.63642062,96775.0,96774.0,0.41823197]
[1738974410500,1.63642062,96775.0,96774.0,0.42723197]
[1738974410907,1.63642062,96775.0,96774.0,0.41823197]
[1738974411511,1.63642062,96775.0,96774.0,0.42723197]
[1738974411688,1.63642062,96775.0,96774.0,0.41823197]
[1738974411914,1.63642062,96775.0,96774.0,0.42723197]
[1738974412142,1.63642062,96775.0,96774.0,0.43623197]
[1738974415471,1.63642062,96775.0,96774.0,0.46821271]
[1738974416843,1.63642062,96775.0,96774.0,0.45770867]
[1738974417046,1.54303994,96775.0,96774.0,0.45770867]
[1738974417296,1.00579832,96775.0,96774.0,0.95942793]
[1738974417508,0.89353605,96775.0,96774.0,1.00527283]
[1738974417718,0.78405385,96775.0,96774.0,1.03296817]
[1738974418139,0.78405385,96775.0,96774.0,1.00265899]
[1738974418346,0.78405385,96775.0,96774.0,1.01165899]
[1738974418568,0.78405385,96775.0,96774.0,1.00265899]
[1738974418770,0.78405385,96775.0,96774.0,1.01224743]
[1738974418972,0.78405385,96775.0,96774.0,1.02124743]
[1738974419245,0.78405385,96775.0,96774.0,1.01224743]
[1738974419421,0.78405385,96775.0,96774.0,1.00324743]
[1738974419656,0.78405385,96775.0,96774.0,1.01224743]
[1738974419839,0.78405385,96775.0,96774.0,1.05234999]
[1738974420356,0.78405385,96775.0,96774.0,1.04334999]
[1738974420582,0.78405385,96775.0,96774.0,1.05234999]
[1738974421234,0.78405385,96775.0,96774.0,1.03208858]
[1738974421669,0.78405385,96775.0,96774.0,1.02308858]
[1738974421838,0.78405385,96775.0,96774.0,1.03208858]
[1738974422219,0.78405385,96775.0,96774.0,1.00908858]
[1738974422428,0.78405385,96775.0,96774.0,1.01808858]
[1738974424216,0.68072385,96775.0,96774.0,1.52768325]
[1738974424416,0.68072385,96775.0,96774.0,1.44418858]
[1738974424821,0.68072385,96775.0,96774.0,1.43518858]
[1738974424998,0.68072385,96775.0,96774.0,1.44418858]
[1738974425207,1.10535785,96775.0,96774.0,1.44384949]
[1738974425504,1.10535785,96775.0,96774.0,1.43484949]
[1738974425798,1.0588601,96775.0,96774.0,1.45284949]
[1738974426031,0.9555301,96775.0,96774.0,1.43484949]
[1738974426363,0.8522001,96775.0,96774.0,1.43484949]
[1738974426563,0.8522001,96775.0,96774.0,1.44384949]
[1738974426966,0.8522001,96775.0,96774.0,1.43484949]
[1738974427390,0.8315341,96775.0,96774.0,1.44384949]
[1738974427737,0.74813997,96775.0,96774.0,1.43484949]
[1738974427878,0.74813997,96775.0,96774.0,1.44384949]
[1738974428081,0.74733837,96775.0,96774.0,1.43484949]
[1738974428505,0.66467437,96775.0,96774.0,1.43507377]
[1738974428713,0.64400837,96775.0,96774.0,2.31207377]
[1738974428910,0.59975873,96775.0,96774.0,2.32107377]
[1738974429363,0.57909273,96775.0,96774.0,2.32107377]
[1738974429543,0.51709473,96775.0,96774.0,2.31207377]
[1738974429763,0.49642873,96775.0,96774.0,2.32107377]
[1738974429964,0.49642873,96775.0,96774.0,2.24487377]
[1738974430309,0.45509673,96775.0,96774.0,2.23587377]
[1738974430517,0.39075519,96775.0,96774.0,2.22687377]
[1738974431028,0.39075519,96775.0,96774.0,2.23587377]
[1738974431441,0.37008919,96775.0,96774.0,2.23587377]
[1738974431644,0.32875719,96775.0,96774.0,2.23587377]
[1738974431839,0.28742519,96775.0,96774.0,2.23587377]
[1738974432484,0.17234971,96775.0,96774.0,2.32627377]
[1738974432690,0.15147011,96775.0,96774.0,2.32627377]
[1738974433226,0.13687724,96775.0,96774.0,2.31727377]
[1738974433585,0.0002,96789.0,96788.0,0.304977]
[1738974433787,0.0002,96789.0,96788.0,0.4624503]
[1738974434339,0.1216,96813.0,96797.0,0.304963]
[1738974434716,0.1216,96813.0,96797.0,1.24506665]
[1738974434892,0.00015218,96798.0,96797.0,1.21441625]
[1738974435547,0.00015218,96798.0,96797.0,1.26351881]
[1738974435745,0.00015218,96798.0,96797.0,1.25451881]
[1738974435948,0.00015218,96798.0,96797.0,1.26351881]
[1738974436377,0.00015218,96798.0,96797.0,1.29610725]
[1738974436560,0.00015218,96798.0,96797.0,1.33646628]
[1738974436856,0.00015218,96798.0,96797.0,1.32746628]
[1738974437073,0.00015218,96798.0,96797.0,1.31846628]
[1738974437486,0.00015218,96798.0,96797.0,1.32746628]
[1738974438048,0.01307933,96821.0,96797.0,1.32746628]
[1738974438049,7.8e-07,96815.0,96814.0,0.304936]
[1738974438277,0.0002,96829.0,96816.0,0.023]
[1738974438490,0.0002,96829.0,96815.0,0.15]
[1738974438491,0.0002,96829.0,96828.0,0.25741665]
[1738974438689,0.00065379,96829.0,96828.0,0.25741665]
[1738974438891,0.00065379,96829.0,96828.0,0.40741665]
[1738974439707,0.00065379,96829.0,96828.0,0.41700509]
[1738974440442,0.00065379,96829.0,96828.0,0.42600509]
[1738974440941,0.00076049,96829.0,96828.0,0.46610765]
[1738974441762,0.00076049,96829.0,96828.0,0.45710765]
[1738974441965,0.00076049,96829.0,96828.0,0.47510765]
[1738974442209,0.00076049,96829.0,96828.0,0.46610765]
[1738974442436,0.00076049,96829.0,96828.0,0.47510765]
[1738974442755,0.00076049,96829.0,96828.0,0.48910765]
[1738974443405,0.00076049,96829.0,96828.0,0.47510765]
[1738974443629,0.00076049,96829.0,96828.0,1.31270765]
[1738974443819,0.00076049,96829.0,96828.0,1.32318403]
[1738974444647,0.00076049,96829.0,96828.0,1.31418403]
[1738974445047,0.00076049,96829.0,96828.0,1.32318403]
[1738974446214,0.00076049,96829.0,96828.0,1.35518403]
[1738974446403,0.00076049,96829.0,96828.0,1.34618403]
[1738974446806,0.00076049,96829.0,96828.0,1.35518403]
[1738974447121,0.00076049,96829.0,96828.0,1.34618403]
[1738974447323,0.00076049,96829.0,96828.0,1.37543416]
[1738974447747,0.00076049,96829.0,96828.0,1.38922694]
[1738974448135,0.00076049,96829.0,96828.0,1.39822694]
[1738974448354,0.00076049,96829.0,96828.0,1.37354827]
[1738974449065,0.00076049,96829.0,96828.0,1.35554827]
[1738974449246,0.00076049,96829.0,96828.0,1.37354827]
[1738974449456,0.0491067,96846.0,96843.0,0.15]
[1738974449595,0.0491067,96846.0,96845.0,0.40738965]
[1738974449797,0.0491067,96846.0,96845.0,0.91808965]
[1738974450695,0.02586843,96846.0,96845.0,0.95946103]
[1738974451028,0.02586843,96846.0,96845.0,0.92767809]
[1738974451459,0.02586843,96846.0,96845.0,0.93667809]
[1738974451677,0.02586843,96846.0,96845.0,1.03885911]
[1738974452616,0.02586843,96846.0,96845.0,1.04940968]
[1738974452827,0.02586843,96846.0,96845.0,1.05840968]
[1738974453385,0.02586843,96846.0,96845.0,1.04940968]
[1738974453815,0.0779,96850.0,96849.0,0.30488]
[1738974454018,0.0779,96850.0,96849.0,0.40738365]
[1738974454219,0.0757,96856.0,96850.0,0.15]
[1738974454458,0.0757,96856.0,96850.0,0.27550365]
[1738974454600,0.0757,96856.0,96850.0,0.30730566]
[1738974455000,0.0757,96856.0,96850.0,0.3168941]
[1738974455429,0.0757,96856.0,96850.0,0.32585258]
[1738974455778,0.0757,96856.0,96850.0,0.32449277]
[1738974455955,0.0757,96856.0,96850.0,0.33349277]
[1738974456168,0.0757,96856.0,96850.0,0.41286082]
[1738974456333,0.02366127,96856.0,96851.0,0.177877]
[1738974456542,0.0147822,96861.0,96855.0,0.25737365]
[1738974456742,0.0147822,96861.0,96857.0,0.10250365]
[1738974457873,0.14420752,96900.0,96858.0,0.15]
[1738974458096,0.03507183,96894.0,96866.0,0.15]
[1738974458311,0.02099847,96890.0,96875.0,0.154838]
[1738974458458,0.00473275,96889.0,96876.0,0.10250365]
[1738974459113,0.00473275,96889.0,96876.0,0.1026399]
[1738974459325,0.0757,96888.0,96877.0,0.154835]
[1738974459537,0.00472816,96887.0,96878.0,0.10250365]
[1738974459742,0.0757,96886.0,96878.0,0.10250365]
[1738974460116,0.00472358,96885.0,96878.0,0.10250365]
[1738974460316,0.0757,96884.0,96878.0,0.10250365]
[1738974460487,0.00472254,96883.0,96878.0,0.10250365]
[1738974460695,0.0757,96882.0,96879.0,0.16442044]
[1738974460902,0.1249,96882.0,96881.0,0.154829]
[1738974461128,0.12962598,96882.0,96881.0,0.25733265]
[1738974461531,0.12962598,96882.0,96881.0,0.26692109]
[1738974462735,0.12962598,96882.0,96881.0,0.12109209]
[1738974462933,0.12962598,96882.0,96881.0,0.13009209]
[1738974463143,0.1249,96882.0,96881.0,0.12109209]
[1738974463337,0.1249,96882.0,96881.0,0.13009209]
[1738974463464,0.12962598,96882.0,96881.0,0.12109209]
[1738974463665,0.12962598,96882.0,96881.0,0.13009209]
[1738974463666,0.10962598,96882.0,96881.0,0.13009209]
[1738974464671,0.10962598,96882.0,96881.0,0.28492109]
[1738974464894,0.10962598,96882.0,96881.0,0.02758844]
[1738974465685,0.10973268,96882.0,96881.0,0.00958844]
[1738974465892,0.10973268,96882.0,96881.0,0.01758844]
[1738974466096,0.10973268,96882.0,96881.0,0.02658844]
[1738974466297,0.10973268,96882.0,96881.0,0.017]
[1738974466504,0.10973268,96882.0,96881.0,0.016]
[1738974466711,0.10973268,96882.0,96881.0,0.025]
[1738974467106,0.11618754,96882.0,96881.0,0.025]
[1738974468031,0.11618754,96882.0,96881.0,0.95003265]
[1738974468032,0.01128754,96882.0,96881.0,0.95003265]
[1738974468207,0.01128754,96882.0,96881.0,0.95903265]
[1738974468579,0.01128754,96882.0,96881.0,0.98183255]
[1738974468580,0.00656156,96882.0,96881.0,0.98183255]
[1738974468779,0.00656156,96882.0,96881.0,0.99083255]
[1738974469014,0.00656156,96882.0,96881.0,1.00992781]
[1738974469196,0.00656156,96882.0,96881.0,0.99248572]
[1738974469574,0.00656156,96882.0,96881.0,1.01813149]
[1738974470295,0.0001068,96895.0,96894.0,0.154808]
[1738974470434,0.0001068,96895.0,96894.0,0.43031165]
[1738974471164,0.0001068,96895.0,96894.0,0.94101165]
[1738974471403,0.00991828,96902.0,96901.0,0.304797]
[1738974471606,0.00991828,96902.0,96901.0,0.94100065]
[1738974472580,0.00991828,96902.0,96901.0,0.95000065]
[1738974473174,0.00991828,96902.0,96901.0,0.95055856]
[1738974473449,0.00991828,96902.0,96901.0,0.95820433]
[1738974473866,0.00991828,96902.0,96901.0,0.98995642]
[1738974474498,0.00991828,96902.0,96901.0,0.96720433]
[1738974474706,0.00491828,96902.0,96901.0,0.95820433]
[1738974474926,0.00491828,96902.0,96901.0,0.42450433]
[1738974475135,0.00491828,96902.0,96901.0,0.28770733]
[1738974475359,0.00491828,96902.0,96901.0,0.12870733]
[1738974475689,0.00491828,96902.0,96901.0,0.28770733]
[1738974475890,0.00491828,96902.0,96901.0,0.27870733]
[1738974476261,0.00491828,96902.0,96901.0,0.13770733]
[1738974476484,0.00491828,96902.0,96901.0,0.13906156]
[1738974477065,0.05291828,96902.0,96901.0,0.13906156]
[1738974477299,0.13591828,96902.0,96901.0,0.03655791]
[1738974477472,0.13591828,96902.0,96901.0,0.01855791]
[1738974477809,0.20639321,96902.0,96901.0,0.01555791]
[1738974478018,0.13602488,96902.0,96901.0,0.02355791]
[1738974478377,0.13602488,96902.0,96901.0,0.02955791]
[1738974478571,0.13602488,96902.0,96901.0,0.02155791]
[1738974478757,0.13602488,96902.0,96885.0,0.154821]
[1738974479121,0.15481,96893.0,96887.0,0.10250365]
[1738974479325,0.13602488,96902.0,96881.0,0.00022386]
[1738974479326,0.083,96892.0,96881.0,0.00022386]
[1738974479479,0.048,96891.0,96882.0,0.10250365]
[1738974479677,0.154814,96890.0,96888.0,0.00954393]
[1738974480670,0.154824,96884.0,96883.0,0.00954393]
[1738974481710,0.285824,96884.0,96883.0,0.00954393]
[1738974481909,0.154827,96882.0,96881.0,0.00022386]
[1738974482114,0.154827,96882.0,96853.0,0.09135761]
[1738974482115,0.28587,96855.0,96853.0,0.09135761]
[1738974483753,0.0918049,96854.0,96853.0,0.09135761]
[1738974484237,0.28587,96855.0,96853.0,0.09135761]
[1738974484455,0.154884,96847.0,96836.0,0.154899]
[1738974484899,0.079,96846.0,96817.0,0.206573]
[1738974485388,0.1259,96846.0,96814.0,0.09135761]
[1738974485596,0.1962792,96846.0,96816.0,0.154932]
[1738974485839,0.1962792,96846.0,96845.0,0.01836035]
[1738974486089,0.1962792,96846.0,96845.0,0.00936035]
[1738974486302,0.1962792,96846.0,96845.0,0.00036035]
[1738974486546,0.1962792,96846.0,96845.0,0.00936035]
[1738974487500,0.1962792,96846.0,96845.0,0.01836035]
[1738974487630,0.1962792,96846.0,96845.0,0.00936035]
[1738974487830,0.2062792,96846.0,96845.0,0.00036035]
[1738974488060,0.2062792,96846.0,96845.0,0.00936035]
[1738974488402,0.2062792,96846.0,96845.0,0.01836035]
[1738974488882,0.2062792,96846.0,96845.0,0.00036035]
[1738974489260,0.774472,96840.0,96813.0,0.08349467]
[1738974489416,0.14378794,96830.0,96813.0,0.08394846]
[1738974489817,0.154933,96816.0,96813.0,0.08394846]
[1738974490044,0.154933,96816.0,96813.0,0.00045379]
[1738974490269,0.154931,96818.0,96813.0,0.00045379]
[1738974490420,0.206549,96829.0,96813.0,0.00045379]
[1738974490421,0.154932,96817.0,96813.0,0.00045379]
[1738974490883,0.154913,96828.0,96813.0,0.00045379]
[1738974491062,0.206558,96825.0,96813.0,0.00045379]
[1738974491414,0.02062762,96823.0,96813.0,0.00945379]
[1738974491623,0.206549,96829.0,96814.0,0.10250365]
[1738974491800,0.154918,96825.0,96815.0,0.154933]
[1738974492025,0.154918,96825.0,96813.0,0.00945379]
[1738974492026,0.154921,96824.0,96816.0,0.10250365]
[1738974492208,0.0201853,96825.0,96817.0,0.15493]
[1738974492340,0.36029294,96850.0,96818.0,0.10250365]
[1738974492544,0.15491,96831.0,96823.0,0.154921]
[1738974492754,0.15491,96831.0,96823.0,0.10250365]
[1738974493666,0.22711081,96834.0,96823.0,0.10250365]
[1738974493667,0.154913,96829.0,96823.0,0.10250365]
[1738974493898,0.22711181,96834.0,96823.0,0.10250365]
[1738974494075,0.154919,96825.0,96823.0,0.10250365]
[1738974494496,0.02057181,96834.0,96813.0,0.00045379]
[1738974494695,0.14378794,96830.0,96816.0,0.007]
[1738974494922,0.154927,96820.0,96818.0,0.002]
[1738974495132,0.1266,96819.0,96818.0,0.002]
[1738974495342,0.154936,96814.0,96813.0,0.00045379]
[1738974496095,0.393936,96814.0,96813.0,0.00045379]
[1738974496294,0.154961,96798.0,96797.0,0.00022407]
[1738974496569,0.233961,96798.0,96797.0,0.00022407]
[1738974496796,0.298679,96798.0,96797.0,0.00022407]
[1738974496999,0.346279,96798.0,96797.0,0.00022407]
[1738974497331,0.36672365,96798.0,96797.0,0.00022407]
[1738974498364,0.36972365,96798.0,96797.0,0.00022407]
[1738974498815,0.37272365,96798.0,96797.0,0.00022407]
[1738974498951,0.30800565,96798.0,96797.0,0.00022407]
[1738974502142,0.006,96798.0,96797.0,0.10272772]
[1738974502545,0.006,96798.0,96797.0,0.00022407]
[1738974502750,0.006,96798.0,96774.0,0.023]
[1738974502897,0.154965,96796.0,96775.0,0.10250365]
[1738974503139,0.154968,96794.0,96775.0,0.10250365]
[1738974503339,0.154968,96794.0,96786.0,0.154979]
[1738974503540,0.006,96798.0,96787.0,0.10250365]
[1738974503772,0.154972,96792.0,96787.0,0.10250365]
[1738974503978,0.154973,96791.0,96787.0,0.10250365]
[1738974504185,0.15497,96793.0,96787.0,0.10250365]
[1738974504392,0.206622,96795.0,96787.0,0.10250365]
[1738974504600,0.154966,96796.0,96787.0,0.10250365]
[1738974504816,0.154967,96795.0,96787.0,0.10250365]
[1738974505015,0.154967,96795.0,96787.0,0.10450365]
[1738974505638,0.15497,96793.0,96787.0,0.10550365]
[1738974506036,0.15497,96793.0,96787.0,0.10350365]
[1738974506236,0.15497,96793.0,96787.0,0.10450365]
[1738974507162,0.154967,96795.0,96787.0,0.25948165]
[1738974507563,0.154967,96795.0,96787.0,0.25848165]
[1738974507772,0.154967,96795.0,96787.0,0.26048165]
[1738974507984,0.154967,96795.0,96787.0,0.26148165]
[1738974508358,0.154969,96794.0,96787.0,0.10450365]
[1738974508565,0.154969,96794.0,96787.0,0.10550365]
[1738974508767,0.154973,96791.0,96787.0,0.10550365]
[1738974509033,0.154971,96792.0,96787.0,0.10550365]
[1738974509188,0.154971,96792.0,96787.0,0.10450365]
[1738974509394,0.206615,96798.0,96787.0,0.10450365]
[1738974509572,0.206623,96795.0,96787.0,0.10450365]
[1738974510172,0.154972,96792.0,96787.0,0.10450365]
[1738974510390,0.154972,96792.0,96787.0,0.10250365]
[1738974510612,0.02021674,96800.0,96787.0,0.10650365]
[1738974510806,0.154972,96792.0,96787.0,0.10650365]
[1738974511015,0.02021674,96800.0,96787.0,0.10250365]
[1738974511210,0.154968,96794.0,96787.0,0.10250365]
[1738974511378,0.154968,96794.0,96787.0,0.10650365]
[1738974511602,0.154968,96794.0,96787.0,0.10550365]
[1738974511804,0.154968,96794.0,96787.0,0.10250365]
[1738974512003,0.15497,96793.0,96787.0,0.10450365]
[1738974512384,0.15497,96793.0,96787.0,0.10250365]
[1738974512584,0.00646101,96792.0,96787.0,0.10250365]
[1738974512786,0.00646101,96792.0,96791.0,0.154973]
[1738974513037,0.00646101,96792.0,96791.0,0.10250365]
[1738974514235,0.154977,96788.0,96787.0,0.00022428]
[1738974514438,0.20663,96791.0,96787.0,0.10272793]
[1738974514636,0.206623,96795.0,96787.0,0.10272793]
[1738974514637,0.154975,96790.0,96788.0,0.10250365]
[1738974516143,0.154974,96791.0,96788.0,0.10250365]
[1738974516337,0.154976,96789.0,96787.0,0.00522428]
[1738974516754,0.154976,96789.0,96787.0,0.00022428]
[1738974516989,0.154976,96789.0,96788.0,0.007]
[1738974517150,0.18002986,96789.0,96788.0,0.004]
[1738974517588,0.18002986,96789.0,96787.0,0.00322428]
[1738974517763,0.18002986,96789.0,96787.0,0.00022428]
[1738974517970,0.18002986,96789.0,96787.0,0.00222428]
[1738974518199,0.22214599,96788.0,96787.0,0.00222428]
[1738974518391,0.22214599,96788.0,96787.0,0.00022428]
[1738974518626,0.154977,96788.0,96787.0,0.00022428]
[1738974518764,0.154977,96788.0,96787.0,0.00122428]
[1738974520011,0.154977,96788.0,96787.0,0.00022428]
[1738974520187,0.154977,96788.0,96787.0,0.00322428]
[1738974520396,0.0784,96823.0,96788.0,0.023]
[1738974520619,0.08349467,96812.0,96794.0,0.229622]
[1738974520827,0.29008067,96812.0,96796.0,0.023]
[1738974521024,0.154945,96808.0,96798.0,0.154961]
[1738974521203,0.23349467,96822.0,96799.0,0.13446043]
[1738974521398,0.02057095,96816.0,96803.0,0.154952]
[1738974521622,0.154943,96810.0,96804.0,0.10250365]
[1738974522144,0.154944,96809.0,96804.0,0.10250365]
[1738974522506,0.154941,96811.0,96804.0,0.25745565]
[1738974523343,0.154941,96811.0,96805.0,0.03196104]
[1738974523544,0.00056066,96814.0,96806.0,0.10250365]
[1738974523765,0.154942,96810.0,96806.0,0.10250365]
[1738974523967,0.15494,96812.0,96806.0,0.10250365]
[1738974524195,0.154941,96811.0,96806.0,0.10250365]
[1738974524535,0.154942,96810.0,96806.0,0.10250365]
[1738974524736,0.154942,96810.0,96806.0,0.10550365]
[1738974524888,0.154941,96811.0,96806.0,0.10550365]
[1738974525099,0.154941,96811.0,96806.0,0.11150365]
[1738974525308,0.00056066,96814.0,96807.0,0.206596]
[1738974525465,0.00056066,96814.0,96812.0,0.154938]
[1738974525671,0.00056066,96814.0,96812.0,0.25744165]
[1738974525923,0.00056066,96814.0,96813.0,0.03195879]
[1738974526133,0.00056066,96814.0,96813.0,0.22950365]
[1738974526334,0.00056066,96814.0,96813.0,0.58939789]
[1738974526534,0.00056066,96814.0,96813.0,0.5998552]
[1738974526736,0.206457,96873.0,96835.0,0.0813]
[1738974526737,0.0808,96868.0,96835.0,0.0813]
[1738974526942,0.0808,96868.0,96854.0,0.154871]
[1738974527167,0.02072084,96868.0,96843.0,0.023]
[1738974527373,0.02072084,96868.0,96844.0,0.1343898]
[1738974527596,0.206458,96872.0,96859.0,0.154862]
[1738974527820,0.206458,96872.0,96859.0,0.10250365]
[1738974528014,0.003,96868.0,96865.0,0.154853]
[1738974528219,0.004,96868.0,96859.0,0.10264019]
[1738974528422,0.001,96868.0,96861.0,0.15486]
[1738974528623,0.154851,96867.0,96859.0,0.10264019]
[1738974528798,0.001,96868.0,96859.0,0.10264019]
[1738974529794,0.154854,96866.0,96859.0,0.10264019]
[1738974530002,0.154856,96865.0,96859.0,0.10264019]
[1738974530209,0.15486,96862.0,96859.0,0.10264019]
[1738974531048,0.154862,96861.0,96859.0,0.00113654]
[1738974531226,0.0361333,96860.0,96859.0,0.00113654]
[1738974531596,0.0361333,96860.0,96859.0,0.00313654]
[1738974532240,0.154862,96861.0,96859.0,0.00313654]
[1738974532443,0.154862,96861.0,96859.0,0.00213654]
[1738974532801,0.154862,96861.0,96859.0,0.00513654]
[1738974533139,0.154862,96861.0,96859.0,0.00213654]
[1738974533381,0.154862,96861.0,96859.0,0.00013654]
[1738974533567,0.154862,96861.0,96859.0,0.00313654]
[1738974533776,0.154862,96861.0,96859.0,0.00613654]
[1738974534209,0.154862,96861.0,96859.0,0.00813654]
[1738974538293,0.1549688,96861.0,96859.0,0.00813654]
[1738974540412,0.0001068,96861.0,96859.0,0.00813654]
[1738974541023,0.0001068,96861.0,96860.0,0.10250365]
[1738974541769,0.0001068,96861.0,96860.0,0.12550365]
[1738974542413,0.0001068,96861.0,96860.0,0.13050365]
[1738974542796,0.0001068,96861.0,96860.0,0.12750365]
[1738974543194,0.0001068,96861.0,96860.0,0.11350365]
[1738974543511,0.0001068,96861.0,96860.0,0.11150365]
[1738974544055,0.0001068,96861.0,96860.0,0.11850365]
[1738974544262,0.0001068,96861.0,96860.0,0.11150365]
[1738974544466,0.0001068,96861.0,96860.0,0.11950365]
[1738974544696,0.0001068,96861.0,96860.0,0.11050365]
[1738974544866,0.0001068,96861.0,96860.0,0.11950365]
[1738974545400,0.0001068,96861.0,96860.0,0.11050365]
[1738974545808,0.0001068,96861.0,96860.0,0.11950365]
[1738974546259,0.0001068,96861.0,96860.0,0.11050365]
[1738974546466,0.0001068,96861.0,96860.0,0.11950365]
[1738974546704,0.0001068,96861.0,96860.0,0.11150365]
[1738974546922,0.0001068,96861.0,96860.0,0.11950365]
[1738974548148,0.0001068,96861.0,96860.0,0.017]
[1738974548579,0.03625128,96861.0,96860.0,0.017]
[1738974548777,0.11205128,96861.0,96860.0,0.017]
[1738974548958,0.154862,96860.0,96859.0,1e-08]
[1738974549737,0.165942,96860.0,96859.0,1e-08]
[1738974549928,0.17239947,96860.0,96859.0,1e-08]
[1738974550166,0.26378705,96860.0,96859.0,1e-08]
[1738974550556,0.27394706,96860.0,96859.0,0.00100001]
[1738974553769,0.28394706,96860.0,96859.0,0.00100001]
[1738974553983,0.58375071,96860.0,96859.0,0.00100001]
[1738974554327,0.66055071,96860.0,96859.0,0.00100001]
[1738974554532,0.67055071,96860.0,96859.0,0.00100001]
[1738974554930,0.67455071,96860.0,96859.0,0.00100001]
[1738974555300,0.67055071,96860.0,96859.0,0.00100001]
[1738974555539,0.01,96854.0,96837.0,0.08349467]
[1738974555739,0.154897,96838.0,96837.0,0.08349467]
[1738974556166,0.154911,96830.0,96825.0,0.08349467]
[1738974556382,0.154911,96830.0,96826.0,0.10250365]
[1738974556552,0.154915,96827.0,96826.0,0.10250365]
[1738974556731,0.206556,96826.0,96812.0,0.00022428]
[1738974556936,0.206545,96831.0,96815.0,0.10250365]
[1738974557258,0.154934,96815.0,96812.0,0.00022428]
[1738974557760,0.15440162,96815.0,96812.0,0.00022428]
[1738974557927,0.16085909,96815.0,96812.0,0.00022428]
[1738974558137,0.00645747,96815.0,96812.0,0.00022428]
[1738974559304,0.16139147,96815.0,96812.0,0.00022428]
[1738974560060,0.00645747,96815.0,96812.0,0.00022428]
[1738974560201,0.00745747,96815.0,96814.0,0.00622428]
[1738974560400,0.00845747,96815.0,96814.0,0.01522428]
[1738974561196,0.20038732,96815.0,96814.0,0.01522428]